bitfinex/quotes_ETHUSD_20250115
["timestamp","ask_amount","ask_price","bid_price","bid_amount"]
[1736910835649,3.10133,3224.5,3223.6,0.03101938]
[1736910835857,3.10133,3224.5,3223.5,3.10221]
[1736910836156,3.10125,3224.5,3223.5,3.13322851]
[1736910836844,3.10125,3224.5,3223.6,0.187]
[1736910838344,3.10135,3224.4,3223.6,0.187]
[1736910841145,3.10155,3224.2,3223.6,0.187]
[1736910841458,3.10164,3224.1,3223.6,0.187]
[1736910841957,3.7721,3224.3,3222.7,2.93708437]
[1736910842257,3.1022,3223.6,3222.8,0.187]
[1736910842428,3.10226,3223.5,3222.8,0.187]
[1736910843234,3.10243,3223.3,3222.4,2.93708437]
[1736910843435,3.10252,3223.2,3222.5,0.187]
[1736910843631,3.1026,3223.1,3222.5,0.187]
[1736910843937,3.1026,3223.1,3222.6,0.187]
[1736910844526,0.310252,3223.2,3222.7,0.187]
[1736910844527,3.10281,3222.9,3222.7,0.187]
[1736910844721,3.10281,3222.9,3222.8,0.187]
[1736910845557,4.076852,3223.2,3222.8,0.187]
[1736910845862,3.8205642,3223.1,3222.8,0.187]
[1736910846856,0.7179342,3223.1,3222.8,0.187]
[1736910847028,3.10241,3223.3,3222.8,0.187]
[1736910848058,3.10254,3223.2,3222.8,0.187]
[1736910848628,3.10261,3223.1,3222.8,0.187]
[1736910848964,3.412871,3223.1,3222.8,0.187]
[1736910850837,3.10278,3223.0,3222.8,0.187]
[1736910855441,0.310261,3223.1,3222.8,0.187]
[1736910855638,3.310261,3223.1,3222.8,0.187]
[1736910855856,3.10252,3223.2,3222.8,0.187]
[1736910856462,3.0,3223.3,3222.8,0.187]
[1736910856970,1.38712119,3223.5,3222.8,0.187]
[1736910857177,3.0,3223.2,3222.8,0.187]
[1736910859977,3.10262,3223.1,3222.8,0.187]
[1736910863087,0.610242,3223.2,3222.8,0.187]
[1736910863088,3.610242,3223.2,3222.8,0.187]
[1736910863401,3.10242,3223.3,3222.8,0.187]
[1736910864363,3.0,3223.4,3222.8,0.187]
[1736910864865,0.7882,3223.7,3222.8,0.187]
[1736910865093,3.10215,3223.6,3222.8,0.187]
[1736910866707,1.20268702,3224.2,3222.9,3.51811035]
[1736910866907,3.10176,3224.0,3223.1,0.55]
[1736910867110,3.10176,3224.0,3223.1,0.58102268]
[1736910867521,3.10176,3224.0,3223.1,0.55]
[1736910869834,3.10183,3223.9,3222.9,2.93708437]
[1736910870006,3.10192,3223.8,3222.9,2.93708437]
[1736910872269,3.10192,3223.8,3223.0,0.55]
[1736910873255,3.10182,3224.0,3223.0,0.55]
[1736910874152,3.10182,3224.0,3223.0,3.65267]
[1736910876913,0.63033347,3224.1,3223.0,0.55]
[1736910876914,3.10195,3223.8,3223.0,0.55]
[1736910878184,3.10213,3223.6,3222.8,0.187]
[1736910878323,3.10213,3223.6,3222.6,3.10305]
[1736910878524,3.10232,3223.4,3222.7,0.187]
[1736910879922,0.7608,3223.7,3222.8,0.187]
[1736910879923,3.10243,3223.3,3222.8,0.187]
[1736910880158,0.310243,3223.2,3222.8,0.187]
[1736910881957,3.10287,3222.9,3221.9,5.33871]
[1736910882121,3.10312,3222.6,3222.0,0.187]
[1736910882322,3.1033,3222.4,3222.0,0.187]
[1736910883419,4.174222,3222.6,3222.0,0.187]
[1736910883624,4.174222,3222.6,3221.9,2.235]
[1736910883625,4.174222,3222.6,3222.1,0.187]
[1736910884034,0.7608,3223.1,3222.1,0.187]
[1736910884240,0.7608,3223.4,3222.2,0.03103432]
[1736910884532,3.10261,3223.1,3222.1,3.10354]
[1736910884855,3.10261,3223.1,3222.2,0.187]
[1736910886029,3.0,3223.2,3222.3,3.68437172]
[1736910886248,0.61368271,3223.4,3222.3,6.62145609]
[1736910886428,0.61368271,3223.4,3222.3,3.48708437]
[1736910886623,0.61368271,3223.4,3222.4,0.03102951]
[1736910886932,3.10203,3223.7,3222.6,3.10308]
[1736910887241,3.10213,3223.6,3222.6,3.10308]
[1736910890482,3.0,3223.7,3222.8,0.55]
[1736910890689,3.0,3224.1,3223.0,0.55]
[1736910890986,1.30537916,3224.0,3223.1,0.187]
[1736910891207,0.63613072,3224.0,3223.1,0.187]
[1736910891553,3.10166,3224.1,3223.1,0.187]
[1736910894989,3.71519391,3224.1,3223.1,0.187]
[1736910895159,3.10176,3224.0,3223.1,0.187]
[1736910897096,0.61353391,3224.1,3223.1,0.187]
[1736910897313,3.61353391,3224.1,3223.1,3.28958]
[1736910897889,3.10125,3224.6,3223.4,3.10226]
[1736910898087,3.10128,3224.5,3223.5,0.5810189]
[1736910898295,3.0,3224.4,3223.1,3.2895]
[1736910898594,3.10165,3224.1,3223.1,3.2895]
[1736910898798,3.10165,3224.1,3223.2,0.55]
[1736910899029,0.7554,3224.0,3222.7,2.93708437]
[1736910899201,3.85722,3224.0,3223.3,0.187]
[1736910899406,3.0,3223.7,3223.3,0.187]
[1736910899725,3.0,3223.8,3223.3,0.187]
[1736910899930,3.10196,3223.8,3223.3,0.187]
[1736910900228,3.73395243,3223.8,3223.3,0.187]
[1736910900727,0.7554,3224.4,3223.3,0.187]
[1736910900933,0.7554,3224.7,3223.4,0.58102103]
[1736910901132,3.10126,3224.5,3223.5,3.1022]
[1736910901299,3.10126,3224.5,3223.4,0.58102103]
[1736910901300,3.0,3224.4,3223.4,0.58102103]
[1736910901627,6.10135,3224.4,3223.4,0.55]
[1736910903344,0.62068021,3224.6,3223.4,0.55]
[1736910903345,3.10156,3224.2,3223.4,0.55]
[1736910903530,3.10137,3224.4,3223.4,0.55]
[1736910903732,3.10137,3224.4,3223.4,3.6523]
[1736910903955,3.0,3224.5,3223.6,3.1021]
[1736910904167,3.10093,3224.9,3223.9,0.55]
[1736910904464,3.10093,3224.9,3223.9,6.58887437]
[1736910905466,3.10093,3224.9,3223.8,0.55]
[1736910906343,3.10099,3224.8,3223.8,0.55]
[1736910906866,0.8312,3225.3,3224.0,0.55]
[1736910907069,4.23458407,3225.4,3224.2,3.10145]
[1736910907272,0.95545841,3225.3,3224.3,0.186]
[1736910907579,3.10128,3224.5,3224.3,0.186]
[1736910907963,3.10109,3224.7,3224.3,0.186]
[1736910908980,3.73312621,3224.7,3224.3,0.186]
[1736910910973,3.10117,3224.6,3224.3,0.186]
[1736910911147,6.10135,3224.4,3223.1,2.93708437]
[1736910911349,3.0,3224.3,3223.2,0.186]
[1736910911673,4.19442062,3224.6,3223.3,0.55]
[1736910911842,3.10149,3224.3,3223.3,0.55]
[1736910912781,0.63203621,3224.7,3223.5,3.6522]
[1736910912950,3.10115,3224.6,3223.5,0.55]
[1736910913149,3.0,3224.4,3223.5,0.55]
[1736910913350,3.0,3224.6,3223.6,3.13312816]
[1736910913873,6.10117,3224.6,3223.6,3.10211]
[1736910914962,6.10117,3224.6,3223.7,0.55]
[1736910915154,3.0,3224.7,3223.8,0.03101755]
[1736910916355,3.0,3224.7,3223.7,3.48708437]
[1736910916540,3.0,3224.7,3223.9,0.55]
[1736910917576,0.8211,3225.1,3223.9,0.55]
[1736910917781,3.1006,3225.2,3224.1,0.55]
[1736910918078,3.1006,3225.2,3224.2,0.0310117]
[1736910918390,3.1006,3225.2,3224.3,0.186]
[1736910919684,3.1004,3225.4,3224.4,3.68227149]
[1736910919867,3.1004,3225.4,3224.4,3.65126]
[1736910920066,0.6235997,3225.5,3224.6,0.55]
[1736910921278,0.29370844,3225.8,3224.7,0.58100747]
[1736910921440,3.0,3225.7,3224.7,3.68203747]
[1736910921646,0.61116997,3225.6,3224.7,3.65103]
[1736910923847,0.61116997,3225.6,3224.7,0.55]
[1736910924452,3.10012,3225.7,3224.7,0.55]
[1736910924664,3.70667579,3225.7,3224.7,0.55]
[1736910925885,0.60655579,3225.7,3224.7,0.55]
[1736910926084,3.10029,3225.5,3224.7,0.55]
[1736910928679,3.10049,3225.3,3224.3,3.12308437]
[1736910928992,3.10032,3225.5,3224.5,0.55]
[1736910929179,3.10032,3225.5,3224.5,0.58100914]
[1736910929382,3.10032,3225.5,3224.5,3.68221914]
[1736910929599,3.60655579,3225.7,3224.7,0.55]
[1736910929762,3.60655579,3225.7,3224.7,0.58100693]
[1736910930096,3.0,3225.7,3224.7,3.68204693]
[1736910931515,3.0,3225.7,3224.7,3.65104]
[1736910931682,3.0,3225.7,3224.7,3.68204693]
[1736910931865,3.0,3225.7,3224.7,3.65104]
[1736910933124,3.0,3225.7,3224.7,3.68204693]
[1736910934073,0.60991105,3225.9,3225.0,0.55]
[1736910934262,3.09977,3226.1,3225.2,2.93708437]
[1736910934466,3.09977,3226.1,3225.3,0.186]
[1736910934661,3.0,3226.0,3225.3,0.186]
[1736910935464,3.09983,3226.0,3225.3,0.186]
[1736910937186,3.09991,3225.9,3225.3,0.186]
[1736910937503,3.10003,3225.8,3225.3,0.186]
[1736910937908,3.10021,3225.6,3224.6,6.03822437]
[1736910938113,3.10029,3225.5,3224.7,0.186]
[1736910938831,0.7704,3225.8,3224.7,0.186]
[1736910938832,3.10043,3225.4,3224.7,0.186]
[1736910940381,3.0,3225.5,3224.7,0.186]
[1736910941015,3.1003,3225.5,3224.7,0.186]
[1736910942221,3.1004,3225.4,3224.7,0.186]
[1736910942719,0.63038495,3225.6,3224.7,0.186]
[1736910942720,3.0,3225.5,3224.7,0.186]
[1736910942893,3.10029,3225.5,3224.7,0.186]
[1736910946617,0.7806,3226.4,3225.2,2.93708437]
[1736910946824,3.1001,3225.7,3224.9,2.93708437]
[1736910947021,0.7806,3225.7,3224.7,0.186]
[1736910947227,3.1003,3225.5,3224.7,0.186]
[1736910947901,3.09991,3225.9,3224.9,3.10085]
[1736910948227,3.10014,3225.7,3224.8,0.55]
[1736910948526,3.9206,3225.8,3224.9,0.186]
[1736910948705,3.10041,3225.4,3225.0,0.186]
[1736910948906,0.8206,3225.8,3224.0,3.10164]
[1736910949093,3.10073,3225.1,3224.1,0.186]
[1736910949729,3.10073,3225.1,3224.2,0.55]
[1736910950123,3.0,3225.4,3224.4,0.55]
[1736910950326,0.61940028,3225.9,3224.9,2.93708437]
[1736910950490,3.0999,3226.0,3225.0,0.736]
[1736910951292,6.09991,3225.9,3225.0,0.736]
[1736910952294,0.63586543,3226.1,3225.0,0.186]
[1736910952295,3.10025,3225.6,3225.0,0.186]
[1736910952494,3.0,3225.5,3225.0,0.186]
[1736910953837,3.10037,3225.5,3225.1,0.186]
[1736910954133,3.10041,3225.4,3225.2,0.186]
[1736910954329,3.10048,3225.3,3225.2,0.186]
[1736910956692,0.310041,3225.4,3225.2,0.186]
[1736910956892,3.73256084,3225.5,3225.2,0.186]
[1736910958401,0.63227084,3225.5,3225.2,0.186]
[1736910958602,3.1004,3225.4,3225.2,0.186]
[1736910958799,3.10048,3225.3,3225.2,0.186]
[1736910959198,3.10087,3224.9,3223.9,3.10181]
[1736910959436,3.10087,3224.9,3224.0,0.186]
[1736910959849,3.10087,3224.9,3224.1,0.55]
[1736910960365,3.0,3225.1,3224.2,0.0310139]
[1736910960718,3.92101,3225.4,3224.2,0.0310139]
[1736910960939,3.0,3225.3,3224.4,0.55]
[1736910961331,0.63227084,3225.5,3224.4,0.55]
[1736910961529,0.63227084,3225.5,3224.5,0.55]
[1736910962028,0.63227084,3225.5,3224.5,3.65125]
[1736910962424,3.10027,3225.6,3224.5,3.68225858]
[1736910962952,3.0,3225.7,3224.7,3.48708437]
[1736910963174,3.09984,3226.0,3225.0,0.55]
[1736910963417,6.09992,3225.9,3225.1,0.186]
[1736910964176,6.09992,3225.9,3225.2,0.55]
[1736910964330,3.0,3225.7,3225.2,0.55]
[1736910965546,3.10039,3225.4,3224.4,2.93708437]
[1736910965732,3.10044,3225.4,3224.5,0.186]
[1736910965930,3.10044,3225.4,3224.6,0.55]
[1736910966245,0.310044,3225.4,3224.6,0.55]
[1736910966434,0.7897,3225.5,3223.9,3.10181]
[1736910966647,3.10108,3224.7,3224.0,0.186]
[1736910966847,3.10108,3224.7,3224.1,0.55]
[1736910968688,3.10108,3224.7,3224.3,0.55]
[1736910968833,3.10096,3224.8,3224.4,0.186]
[1736910969185,3.0,3224.5,3224.3,0.186]
[1736910969331,0.63643846,3225.0,3224.4,0.186]
[1736910969530,3.10049,3225.3,3224.6,0.55]
[1736910969833,0.63662487,3225.5,3224.8,0.55]
[1736910970144,3.09989,3226.0,3225.1,0.55]
[1736910970343,3.09965,3226.2,3225.1,0.55]
[1736910970677,0.61375956,3225.9,3225.1,0.55]
[1736910971021,3.09982,3226.0,3225.1,0.55]
[1736910972888,3.60735976,3226.1,3225.1,0.55]
[1736910973087,3.70708976,3226.1,3225.1,0.55]
[1736910973895,3.09983,3226.0,3225.1,0.55]
[1736910975833,3.09961,3226.3,3225.1,3.68167289]
[1736910976039,3.0,3226.1,3225.1,3.68167289]
[1736910976413,3.0,3226.1,3225.1,3.65067]
[1736910976839,3.0,3226.1,3225.1,3.68167202]
[1736910977065,3.09946,3226.4,3225.4,0.55]
[1736910977266,3.09946,3226.4,3225.6,0.55]
[1736910977562,3.73079697,3226.4,3225.6,0.55]
[1736910977901,0.63133697,3226.4,3225.6,0.55]
[1736910978753,0.63133697,3226.4,3225.7,0.03099796]
[1736910979048,0.63133697,3226.4,3225.6,6.58727437]
[1736910985401,3.73077697,3226.4,3225.6,3.48708437]
[1736910985707,3.73077697,3226.4,3225.6,0.55]
[1736910985906,3.09944,3226.4,3225.6,0.55]
[1736910986108,6.0992,3226.7,3225.6,3.48708437]
[1736910986339,0.8178,3226.9,3225.6,3.48708437]
[1736910986539,3.09907,3226.8,3226.0,0.55]
[1736910986747,3.09867,3227.2,3226.2,2.93708437]
[1736910986917,3.09856,3227.4,3226.3,0.58099217]
[1736910987248,0.15647468,3227.5,3226.5,3.48708437]
[1736910987449,0.62727831,3227.4,3226.5,6.58638437]
[1736910987850,0.62727831,3227.4,3226.6,0.03098818]
[1736910988012,3.0,3227.5,3226.6,0.03098818]
[1736910988214,3.09857,3227.3,3226.5,3.48708437]
[1736910988414,0.609829,3227.5,3226.5,3.48708437]
[1736910988615,3.09865,3227.3,3226.5,0.55]
[1736910989449,2.89865,3227.3,3226.5,0.55]
[1736910991645,0.63317787,3227.6,3226.5,0.55]
[1736910992015,3.09853,3227.4,3226.5,0.55]
[1736910993327,3.09853,3227.4,3226.5,0.58098991]
[1736910993533,0.63317787,3227.6,3226.5,3.51807428]
[1736910993723,0.63317787,3227.6,3226.7,3.64912]
[1736910994548,3.0984,3227.5,3226.5,2.93708437]
[1736910994740,3.09849,3227.4,3226.6,0.55]
[1736910996451,0.8178,3227.8,3226.7,0.03098866]
[1736910996656,0.60759225,3227.8,3227.2,0.55]
[1736910996955,3.0,3228.2,3227.4,0.55]
[1736910997280,3.09763,3228.3,3227.4,0.55]
[1736910997427,0.60753016,3228.3,3227.4,0.55]
[1736910997631,3.09782,3228.1,3227.4,0.55]
[1736911000234,3.70514016,3228.3,3227.4,0.55]
[1736911000649,3.09772,3228.2,3227.4,0.55]
[1736911002376,3.0978,3228.1,3227.4,0.55]
[1736911003245,0.005,3228.4,3227.4,3.51806532]
[1736911003436,0.005,3228.4,3227.6,0.55]
[1736911003663,0.005,3228.4,3227.4,2.93708437]
[1736911003863,3.09764,3228.3,3227.4,2.93708437]
[1736911004049,3.09764,3228.3,3227.5,0.55]
[1736911004375,3.407904,3228.3,3227.5,0.55]
[1736911004943,3.09764,3228.3,3227.5,0.55]
[1736911005144,2.99764,3228.3,3227.5,0.55]
[1736911006878,0.005,3228.4,3227.1,2.93708437]
[1736911007173,0.005,3228.4,3227.2,0.186]
[1736911007174,3.0,3228.2,3227.2,0.186]
[1736911007475,6.09785,3228.1,3227.3,0.55]
[1736911008579,3.09763,3228.3,3227.5,0.55]
[1736911008745,0.005,3228.4,3227.5,0.55]
[1736911008940,0.005,3228.4,3227.6,0.03098099]
[1736911009178,0.005,3228.4,3227.8,3.64805]
[1736911009475,0.005,3228.4,3227.9,0.03097553]
[1736911010649,0.005,3228.4,3228.1,3.64775]
[1736911010857,0.005,3228.4,3228.3,3.48708437]
[1736911012986,0.0715755,3229.0,3228.3,0.55]
[1736911014166,3.09706,3228.9,3228.3,0.55]
[1736911014686,0.0715755,3229.0,3228.3,0.55]
[1736911014981,3.1685155,3229.0,3228.3,0.55]
[1736911020886,0.0715755,3229.0,3228.3,3.51805713]
[1736911021289,0.0715755,3229.0,3228.3,3.48708437]
[1736911021478,0.0715755,3229.0,3228.4,0.03097141]
[1736911022257,0.0715755,3229.0,3228.3,6.58468437]
[1736911022693,0.0715755,3229.0,3228.3,0.55]
[1736911023758,3.1685155,3229.0,3228.3,0.55]
[1736911024397,0.0715755,3229.0,3228.3,0.55]
[1736911025896,0.0715755,3229.0,3228.3,0.58097273]
[1736911026793,0.0715755,3229.0,3228.6,6.58437437]
[1736911026959,0.0715755,3229.0,3228.7,0.030969]
[1736911027161,0.0715755,3229.0,3228.6,6.58437437]
[1736911028992,0.0715755,3229.0,3228.6,3.48708437]
[1736911029786,0.0715755,3229.0,3228.5,0.55]
[1736911031587,0.8607755,3229.0,3228.2,3.09768]
[1736911031785,0.0715755,3229.0,3228.6,0.185]
[1736911033985,0.0715755,3229.0,3228.7,0.185]
[1736911034193,3.09712,3228.8,3228.7,0.185]
[1736911035685,6.09712,3228.8,3228.7,0.185]
[1736911036045,0.7892,3228.6,3227.3,6.03558437]
[1736911036203,0.7892,3228.6,3227.4,0.185]
[1736911036404,3.0,3228.5,3227.6,2.93708437]
[1736911036601,0.61847097,3228.8,3228.0,0.55]
[1736911036787,0.8607755,3229.0,3228.0,0.55]
[1736911036990,3.9577555,3229.0,3228.0,0.55]
[1736911037206,0.63088251,3228.9,3228.0,0.55]
[1736911038709,3.72791251,3228.9,3228.0,0.55]
[1736911038993,3.09703,3228.9,3228.0,0.55]
[1736911039214,0.8607755,3229.0,3228.0,0.55]
[1736911039418,3.09714,3228.8,3228.0,0.55]
[1736911039822,3.09714,3228.8,3227.9,2.93708437]
[1736911039823,0.39579155,3228.8,3227.6,2.93708437]
[1736911040031,0.8115,3228.7,3227.7,0.185]
[1736911040336,0.6115,3228.7,3227.7,0.3863]
[1736911040893,3.0,3228.6,3227.8,0.55]
[1736911041106,0.0715755,3229.0,3227.8,0.55]
[1736911041107,0.0715755,3229.0,3228.2,0.55]
[1736911041490,0.0715755,3229.0,3228.4,0.55]
[1736911042127,3.09704,3228.9,3228.4,0.55]
[1736911042734,0.37939122,3228.9,3228.0,0.2013]
[1736911042917,0.0715755,3229.0,3228.1,0.185]
[1736911043104,0.8115,3228.7,3227.7,0.2013]
[1736911043306,0.8115,3228.4,3227.5,0.2013]
[1736911043512,0.8115,3228.4,3227.6,0.186]
[1736911043737,3.09811,3227.8,3227.6,0.186]
[1736911044036,3.09811,3227.8,3227.7,0.186]
[1736911044214,3.489071,3227.8,3227.7,0.186]
[1736911044731,3.489071,3227.8,3227.3,0.2013]
[1736911044941,3.09811,3227.8,3227.7,0.186]
[1736911046136,0.8115,3228.1,3227.7,0.186]
[1736911046294,3.90909,3228.4,3227.9,0.2013]
[1736911047543,3.09769,3228.3,3227.8,0.55]
[1736911047710,0.38070526,3228.3,3227.7,0.186]
[1736911047910,3.09787,3228.1,3227.7,0.186]
[1736911051304,3.09414254,3228.1,3227.7,0.186]
[1736911051504,0.62189062,3228.6,3226.7,2.93708437]
[1736911051505,3.0,3228.3,3226.7,2.93708437]
[1736911051707,0.8115,3228.1,3226.8,0.2013]
[1736911051905,0.8115,3227.9,3226.9,0.186]
[1736911052136,3.09841,3227.5,3226.8,0.2013]
[1736911052336,3.09841,3227.5,3226.9,0.186]
[1736911052925,3.09841,3227.5,3226.9,0.55]
[1736911053246,3.09841,3227.5,3227.0,0.186]
[1736911054042,3.09841,3227.5,3226.9,0.55]
[1736911054352,3.09853,3227.4,3227.0,0.186]
[1736911054513,3.09853,3227.4,3226.8,0.2013]
[1736911054713,3.09853,3227.4,3226.9,0.186]
[1736911057045,3.87323,3227.4,3226.9,0.186]
[1736911057245,3.09893,3227.0,3226.3,0.2013]
[1736911057453,3.0,3227.3,3226.4,0.186]
[1736911057749,3.09895,3226.9,3226.4,0.186]
[1736911058624,3.09895,3226.9,3226.4,0.55]
[1736911058825,3.09917,3226.7,3226.5,0.185]
[1736911059017,3.09916,3226.7,3226.3,0.2013]
[1736911059211,3.0992,3226.7,3226.4,0.185]
[1736911059552,3.5175795,3226.7,3226.4,0.185]
[1736911059854,0.4183795,3226.7,3226.4,0.185]
[1736911060037,3.09933,3226.5,3226.4,0.185]
[1736911060238,3.09924,3226.6,3226.4,0.185]
[1736911062432,1.084595,3226.9,3226.4,0.185]
[1736911062634,0.7747,3226.9,3226.4,0.185]
[1736911062834,1.38403623,3227.1,3226.4,0.185]
[1736911063170,0.7747,3227.3,3226.6,0.55]
[1736911063318,3.09849,3227.4,3226.6,0.55]
[1736911063714,3.0,3227.3,3226.6,0.55]
[1736911064156,2.7512,3227.3,3226.6,0.55]
[1736911064526,2.7512,3227.3,3226.8,0.55]
[1736911066231,0.60989503,3227.4,3226.8,0.55]
[1736911066421,3.0,3227.2,3226.8,0.55]
[1736911070430,3.0986,3227.3,3226.8,0.55]
[1736911070632,0.7747,3227.6,3226.8,0.55]
[1736911070858,0.7525,3227.9,3227.0,0.55]
[1736911071162,0.62599548,3227.5,3227.0,0.55]
[1736911071519,3.09851,3227.4,3227.0,0.55]
[1736911072253,0.62599548,3227.5,3227.0,0.55]
[1736911073548,3.72436548,3227.5,3227.0,0.55]
[1736911076115,3.09848,3227.4,3227.0,0.55]
[1736911080166,3.09868,3227.2,3226.9,0.2013]
[1736911080352,0.37244755,3227.4,3226.0,0.2013]
[1736911080353,0.7525,3227.0,3226.0,0.2013]
[1736911080694,3.09962,3226.2,3226.1,0.185]
[1736911080894,3.09981,3226.0,3225.7,0.2013]
[1736911081055,3.09981,3226.0,3224.6,3.70767055]
[1736911081056,6.09981,3226.0,3225.9,0.185]
[1736911082089,6.09981,3226.0,3225.4,0.2013]
[1736911082291,6.09981,3226.0,3225.8,0.185]
[1736911082495,6.709791,3226.0,3225.8,0.185]
[1736911082667,3.09991,3225.9,3225.8,0.185]
[1736911084200,3.09991,3225.9,3225.4,0.2013]
[1736911084396,3.09991,3225.9,3225.8,0.185]
[1736911085596,3.0,3226.0,3225.8,0.185]
[1736911086104,3.36116886,3226.0,3225.8,0.185]
[1736911086402,3.09991,3225.9,3225.8,0.185]
[1736911086989,3.91291,3225.9,3225.8,0.185]
[1736911087571,0.813,3225.9,3225.3,0.55]
[1736911087770,3.10001,3225.8,3225.4,0.185]
[1736911088306,3.1001,3225.7,3225.4,0.185]
[1736911088614,3.1001,3225.7,3225.5,0.185]
[1736911091518,3.1001,3225.7,3225.6,0.185]
[1736911094487,6.49141,3225.7,3225.6,0.185]
[1736911094704,3.49141,3225.7,3225.6,0.185]
[1736911096636,0.39131,3225.7,3224.9,0.2013]
[1736911096786,3.10039,3225.4,3225.0,0.185]
[1736911097104,3.10059,3225.2,3225.0,0.185]
[1736911097291,3.310039,3225.3,3225.0,0.185]
[1736911097914,6.410529,3225.3,3225.0,0.185]
[1736911098330,0.768,3225.9,3225.0,0.735]
[1736911098495,3.72739039,3225.8,3225.1,0.55]
[1736911098824,3.0,3225.6,3225.1,0.55]
[1736911099023,3.10022,3225.6,3225.1,0.55]
[1736911099328,0.37275304,3225.6,3225.0,0.185]
[1736911099527,3.10047,3225.4,3225.0,0.185]
[1736911100035,3.10049,3225.3,3225.0,0.185]
[1736911100831,0.768,3225.4,3225.0,0.185]
[1736911101141,3.0,3225.2,3224.3,0.2013]
[1736911101294,3.10112,3224.7,3224.4,0.185]
[1736911104041,3.10117,3224.6,3224.4,0.185]
[1736911104250,3.10117,3224.6,3224.5,0.185]
[1736911105910,0.62103542,3224.9,3224.1,0.55]
[1736911106112,3.10119,3224.6,3224.2,0.185]
[1736911106344,3.10119,3224.6,3224.1,0.55]
[1736911106530,3.10119,3224.6,3224.2,0.185]
[1736911108233,3.10099,3224.8,3224.2,0.185]
[1736911108517,3.10099,3224.8,3224.3,0.185]
[1736911108850,3.1011,3224.7,3224.3,0.185]
[1736911111357,3.72193542,3224.9,3224.3,0.185]
[1736911112568,3.1009,3224.9,3224.3,0.185]
[1736911112745,3.1009,3224.9,3224.4,0.2013]
[1736911113962,0.62882762,3225.0,3224.5,0.55]
[1736911114770,3.10087,3224.9,3224.5,0.55]
[1736911114971,3.10087,3224.9,3224.3,0.185]
[1736911114972,3.10117,3224.6,3224.3,0.185]
[1736911115175,3.0,3224.6,3224.3,0.185]
[1736911115329,3.0,3224.7,3224.4,0.185]
[1736911115537,3.10133,3224.5,3224.1,0.2013]
[1736911115787,3.10133,3224.5,3224.2,0.185]
[1736911117090,3.0,3224.7,3224.2,0.185]
[1736911117369,3.10137,3224.4,3224.2,0.185]
[1736911118473,3.10137,3224.4,3223.5,2.93708437]
[1736911118474,3.10222,3223.5,3223.2,0.3863]
[1736911118634,3.0,3223.9,3223.2,0.3863]
[1736911118831,6.712078,3223.9,3223.2,0.3863]
[1736911119087,3.10212,3223.6,3223.2,0.3863]
[1736911119373,3.10212,3223.6,3223.3,0.185]
[1736911119876,3.10221,3223.5,3223.4,0.185]
[1736911120063,6.798604,3223.5,3223.4,0.185]
[1736911120231,3.1025,3223.2,3223.1,0.005]
[1736911120437,3.8622,3223.2,3223.1,0.005]
[1736911121572,6.8622,3223.2,3223.1,0.005]
[1736911122374,0.7597,3223.0,3221.6,0.2013]
[1736911122548,3.10361,3222.1,3221.7,0.185]
[1736911122949,3.0,3222.2,3221.7,0.185]
[1736911124171,3.10353,3222.2,3221.7,0.185]
[1736911124673,3.10357,3222.1,3221.8,0.185]
[1736911124983,3.413927,3222.1,3221.8,0.185]
[1736911125144,3.1037,3222.0,3221.8,0.185]
[1736911125480,3.10375,3221.9,3221.8,0.185]
[1736911126040,3.10397,3221.7,3221.0,0.2013]
[1736911126246,3.10397,3221.7,3221.1,0.185]
[1736911126946,3.10397,3221.7,3221.2,0.55]
[1736911127481,3.10355,3222.2,3221.2,0.55]
[1736911127482,3.0,3222.1,3221.2,0.55]
[1736911127778,3.10377,3221.9,3221.2,0.55]
[1736911127983,3.714147,3221.9,3221.2,0.55]
[1736911128187,0.610377,3221.9,3221.2,0.55]
[1736911128382,3.10396,3221.7,3221.2,0.55]
[1736911128757,0.7977,3221.8,3221.0,0.2013]
[1736911128968,0.7977,3221.8,3221.1,0.185]
[1736911129160,3.0,3221.6,3221.2,0.185]
[1736911129469,3.0,3221.6,3221.3,0.185]
[1736911129470,3.10424,3221.4,3221.3,0.185]
[1736911129675,3.10435,3221.3,3221.2,0.185]
[1736911130264,3.10447,3221.2,3221.1,0.185]
[1736911131052,3.10472,3220.9,3220.4,0.2013]
[1736911131590,3.10472,3220.9,3220.5,0.185]
[1736911131777,3.495052,3220.9,3220.5,0.185]
[1736911133554,0.390332,3220.9,3220.5,0.185]
[1736911133891,0.7986,3221.1,3220.5,0.185]
[1736911133892,3.7986,3221.1,3220.5,0.185]
[1736911135157,3.0,3221.1,3220.5,0.735]
[1736911135459,3.10464,3221.0,3220.5,0.185]
[1736911136786,3.10464,3221.0,3220.4,0.2013]
[1736911136987,3.415104,3221.0,3220.5,0.185]
[1736911138088,0.310464,3221.0,3220.5,0.185]
[1736911138391,3.0,3221.1,3220.5,0.185]
[1736911138961,1.42091372,3221.4,3220.5,0.185]